bitfinex/quotes_ETHUSD_20250629
["timestamp","ask_amount","ask_price","bid_price","bid_amount"]
[1751234062059,27.79019724,2435.1,2435.0,0.51]
[1751234062758,3.28717274,2433.8,2433.6,0.002]
[1751234063059,0.2048,2433.8,2433.6,0.002]
[1751234063263,5.28932283,2434.1,2433.7,0.2048]
[1751234063264,10.0,2434.0,2433.7,0.2048]
[1751234063436,8.57624174,2433.9,2433.6,0.002]
[1751234063838,8.57624828,2433.9,2433.6,0.002]
[1751234065156,15.19024828,2433.9,2433.6,0.002]
[1751234065460,11.90332283,2433.9,2433.6,0.002]
[1751234065869,6.614,2433.9,2433.6,0.002]
[1751234067455,0.7552,2433.8,2433.6,0.002]
[1751234067644,6.615,2433.7,2433.6,0.002]
[1751234067845,9.9021759,2433.7,2433.6,0.002]
[1751234071867,6.615,2433.7,2433.6,0.002]
[1751234072682,3.28696014,2433.9,2433.6,0.002]
[1751234072887,6.616,2433.8,2433.6,0.002]
[1751234074288,0.2048,2433.7,2433.6,0.002]
[1751234076558,3.4919759,2433.7,2433.6,0.002]
[1751234076747,11.056561,2433.7,2433.6,0.002]
[1751234089799,0.2048,2433.7,2433.6,0.002]
[1751234090600,6.8508,2433.7,2433.6,0.002]
[1751234092725,0.2048,2433.7,2433.6,0.002]
[1751234092888,6.8508,2433.7,2433.6,0.002]
[1751234094723,0.2048,2433.7,2433.6,0.002]
[1751234096407,3.4919759,2433.7,2433.6,0.002]
[1751234096728,4.47708655,2433.7,2433.6,0.002]
[1751234101536,13.83731097,2433.6,2433.5,0.001]
[1751234101745,0.8314,2433.4,2432.8,0.002]
[1751234101913,21.66344191,2432.9,2432.8,0.002]
[1751234102119,29.73263349,2432.9,2432.8,0.002]
[1751234102834,60.28263349,2432.9,2432.8,0.002]
[1751234103546,61.18263349,2432.9,2432.8,0.002]
[1751234103745,31.49282209,2432.9,2432.8,0.002]
[1751234103951,61.49282209,2432.9,2432.8,0.002]
[1751234104101,3.28852715,2432.7,2432.0,0.002]
[1751234104301,21.93215899,2432.7,2432.0,0.002]
[1751234104544,20.85392353,2432.1,2432.0,0.002]
[1751234104844,27.52592353,2432.1,2432.0,0.002]
[1751234105502,24.2365851,2432.1,2432.0,0.002]
[1751234105697,27.52592353,2432.1,2432.0,0.002]
[1751234105941,28.93311511,2432.1,2432.0,0.002]
[1751234106150,27.52592353,2432.1,2432.0,0.002]
[1751234109435,10.0,2432.1,2432.0,0.002]
[1751234111532,10.2048,2432.1,2432.0,0.002]
[1751234111838,7.5645851,2432.5,2432.0,0.002]
[1751234112017,0.2048,2432.2,2432.1,3.28933442]
[1751234112222,0.2048,2432.4,2432.1,0.65807959]
[1751234112540,0.2048,2432.4,2432.1,3.28933843]
[1751234113017,0.2048,2432.4,2432.2,3.28920319]
[1751234113216,0.2048,2432.4,2432.3,3.28906796]
[1751234113419,20.85289897,2432.9,2432.3,3.28906796]
[1751234113622,0.2048,2432.6,2432.3,3.28906796]
[1751234114040,0.2048,2432.6,2432.2,3.28917205]
[1751234114243,0.2048,2432.6,2432.2,3.81096925]
[1751234114536,0.2048,2432.6,2432.4,3.28890815]
[1751234114713,10.2048,2432.7,2432.4,3.28890815]
[1751234114910,0.2048,2432.7,2432.5,3.28871263]
[1751234116757,2.34333334,2433.6,2432.6,5.01066233]
[1751234117063,0.2048,2433.3,2433.0,3.28804172]
[1751234117352,14.2465851,2433.5,2432.7,0.50106623]
[1751234117353,6.682,2433.4,2432.7,0.50106623]
[1751234117524,6.8868,2433.4,2433.1,3.28790177]
[1751234118347,0.2048,2433.4,2433.2,3.2877435]
[1751234118516,10.2048,2433.4,2433.2,3.2877435]
[1751234119249,0.2048,2433.4,2433.0,3.4928943]
[1751234119416,0.2048,2433.4,2433.1,5.00996596]
[1751234121249,1.55933334,2433.6,2433.0,0.67811231]
[1751234121429,10.002,2433.7,2432.9,3.28821839]
[1751234121626,3.28744606,2433.5,2433.0,1.722]
[1751234129659,0.002,2433.7,2433.4,3.28751585]
[1751234130458,0.002,2433.7,2433.4,5.00851585]
[1751234131139,0.2068,2433.7,2433.4,5.00851585]
[1751234132159,0.8133,2433.6,2433.3,5.00867482]
[1751234132359,0.2068,2433.7,2433.3,5.00867482]
[1751234132861,0.2068,2433.7,2433.3,3.28767482]
[1751234133041,0.2068,2433.7,2433.4,3.28758005]
[1751234133241,0.2068,2433.7,2433.3,3.28767145]
[1751234133758,0.2068,2433.7,2433.2,0.2048]
[1751234133957,0.8091,2433.6,2432.7,10.0]
[1751234134135,3.49233136,2433.5,2433.1,1.721]
[1751234134335,3.49233136,2433.5,2433.0,1.9258]
[1751234134861,3.28758953,2433.4,2433.0,1.9258]
[1751234135065,7.5645851,2433.4,2432.8,3.28832343]
[1751234135265,0.2048,2433.1,2432.9,1.721]
[1751234137364,0.2048,2433.1,2432.8,1.721]
[1751234142059,0.2048,2433.1,2432.8,5.00938509]
[1751234146063,0.2048,2433.1,2432.8,3.28838509]
[1751234146269,0.2048,2433.1,2432.8,5.02138509]
[1751234155477,0.2048,2433.1,2432.8,1.733]
[1751234157077,0.2048,2433.1,2432.8,5.02132143]
[1751234161186,0.2048,2433.1,2432.9,3.28820996]
[1751234164290,0.2048,2433.1,2432.8,5.02135793]
[1751234167687,0.2068,2433.1,2432.8,5.02135793]
[1751234168090,0.2068,2433.1,2432.9,1.734]
[1751234176515,0.002,2433.1,2432.9,1.734]
[1751234179408,0.002,2433.1,2432.9,1.72]
[1751234186705,0.2068,2433.1,2432.9,1.72]
[1751234188880,0.2068,2433.1,2432.7,5.21327137]
[1751234189378,0.73777662,2433.1,2432.7,5.21327137]
[1751234190204,0.73777662,2433.1,2432.7,3.49327137]
[1751234190409,0.73777662,2433.1,2432.8,1.72]
[1751234192012,0.8292,2433.0,2432.5,1.721]
[1751234192213,1.034,2433.0,2432.5,1.9258]
[1751234192513,4.32247199,2432.8,2432.5,1.721]
[1751234192884,4.32247199,2432.8,2432.5,0.001]
[1751234195521,3.288535,2432.7,2432.5,0.001]
[1751234195825,4.32266233,2432.6,2432.5,0.001]
[1751234197390,1.034,2432.6,2432.5,0.001]
[1751234200511,5.08376132,2432.6,2432.5,0.001]
[1751234202303,29.30734642,2432.6,2432.5,0.001]
[1751234203998,30.29092012,2432.6,2432.5,0.001]
[1751234205095,29.30734642,2432.6,2432.5,0.001]
[1751234207534,15.08376132,2432.6,2432.5,0.001]
[1751234207718,21.74676132,2432.6,2432.5,0.001]
[1751234212309,21.74876132,2432.6,2432.5,0.001]
[1751234220655,29.31334642,2432.6,2432.5,0.001]
[1751234221944,62.35538564,2432.6,2432.5,0.001]
[1751234222145,62.35538564,2432.6,2432.0,0.002]
[1751234222146,4.10673843,2432.1,2432.0,0.002]
[1751234222353,29.07191961,2432.1,2432.0,0.002]
[1751234223643,30.05628439,2432.1,2432.0,0.002]
[1751234225227,3.2898795,2431.7,2431.6,0.002]
[1751234225428,17.5154646,2431.7,2431.6,0.002]
[1751234225672,19.21712244,2431.7,2431.6,0.002]
[1751234225873,20.20095506,2431.7,2431.6,0.002]
[1751234226041,12.63636996,2431.7,2431.6,0.002]
[1751234226245,11.65253734,2431.7,2431.6,0.002]
[1751234226551,9.9508795,2431.7,2431.6,0.002]
[1751234227846,3.2898795,2431.7,2431.6,0.002]
[1751234233757,4.0620795,2431.7,2431.6,0.002]
[1751234236561,9.9528795,2431.7,2431.6,0.002]
[1751234241863,3.2898795,2431.7,2431.6,0.002]
[1751234252071,5.61239455,2431.7,2431.6,0.002]
[1751234252279,12.26539455,2431.7,2431.6,0.002]
[1751234252473,13.25037011,2431.7,2431.6,0.002]
[1751234264021,14.15037011,2431.7,2431.6,0.002]
[1751234264429,13.25037011,2431.7,2431.6,0.002]
[1751234265892,6.59737011,2431.7,2431.6,0.002]
[1751234266322,5.80847011,2431.7,2431.6,0.002]
[1751234271055,3.2898795,2431.7,2431.6,0.002]
[1751234281140,3.4954795,2431.7,2431.6,0.002]
[1751234285672,0.2056,2431.7,2431.6,0.002]
[1751234286350,0.002,2431.8,2431.6,3.29199382]
[1751234287484,0.002,2431.8,2431.6,0.002]
[1751234287836,0.002,2431.8,2431.7,3.2898795]
[1751234288166,0.002,2431.8,2431.7,3.4954795]
[1751234288772,0.002,2431.8,2431.7,4.0454795]
[1751234290593,0.002,2431.8,2431.7,10.6904795]
[1751234294575,0.002,2431.8,2431.7,4.0454795]
[1751234294776,0.002,2431.8,2431.7,6.56623737]
[1751234296707,0.002,2431.8,2431.7,4.31423737]
[1751234296906,0.002,2431.8,2431.7,12.65923737]
[1751234297618,0.002,2431.8,2431.7,1.02435787]
[1751234297826,0.002,2431.8,2431.7,1.9066]
[1751234301318,0.7508655,2432.0,2431.7,1.9066]
[1751234301518,4.04034778,2432.0,2431.7,1.9066]
[1751234302597,3.28971022,2431.9,2431.7,1.701]
[1751234302798,0.2056,2431.8,2431.7,1.701]
[1751234304382,0.2076,2431.8,2431.7,1.701]
[1751234306297,0.2076,2431.8,2431.6,0.002]
[1751234308808,3.49736299,2431.8,2431.6,0.002]
[1751234310919,0.7912,2431.7,2431.6,0.002]
[1751234316645,4.0810795,2431.7,2431.6,0.002]
[1751234316853,4.81836409,2431.7,2431.6,0.002]
[1751234317150,4.83656409,2431.7,2431.6,0.002]
[1751234317498,14.83656409,2431.7,2431.6,0.002]
[1751234318032,22.40114919,2431.7,2431.6,0.002]
[1751234319001,23.38590271,2431.7,2431.6,0.002]
[1751234319331,23.30114919,2431.7,2431.6,0.002]
[1751234319536,24.28558061,2431.7,2431.6,0.002]
[1751234322636,23.30114919,2431.7,2431.6,0.002]
[1751234323630,24.28471007,2431.7,2431.6,0.002]
[1751234323836,23.30114919,2431.7,2431.6,0.002]
[1751234324607,23.60893229,2431.7,2431.6,0.002]
[1751234324918,30.25393229,2431.7,2431.6,0.002]
[1751234329645,22.38156409,2431.7,2431.6,0.002]
[1751234329833,14.9992795,2431.7,2431.6,0.002]
[1751234330041,21.6442795,2431.7,2431.6,0.002]
[1751234330265,11.1056,2431.7,2431.6,0.0155]
[1751234330485,0.2056,2431.7,2431.6,0.0155]
[1751234330628,0.2056,2431.7,2431.6,0.34616001]
[1751234331686,0.2056,2431.7,2431.6,3.63617481]
[1751234331854,0.002,2431.8,2431.6,0.34616001]
[1751234336171,0.002,2431.8,2431.6,3.63612593]
[1751234336481,0.002,2431.8,2431.7,3.2898795]
[1751234336775,0.002,2431.8,2431.7,4.17334973]
[1751234336981,0.002,2431.8,2431.7,4.37894973]
[1751234338299,0.002,2431.8,2431.7,9.40594973]
[1751234341888,0.002,2431.8,2431.7,23.61453483]
[1751234343672,0.002,2431.8,2431.7,17.54534973]
[1751234346984,0.002,2431.8,2431.7,16.99434973]
[1751234349302,0.002,2431.8,2431.6,0.33266001]
[1751234349490,0.002,2431.8,2431.7,3.2898795]
[1751234353693,0.002,2431.8,2431.7,3.4954795]
[1751234354794,0.002,2431.8,2431.7,0.2056]
[1751234354990,0.002,2431.8,2431.6,1.703]
[1751234355192,0.8276,2431.7,2431.6,1.703]
[1751234357289,0.8276,2431.7,2431.6,0.002]
[1751234357490,0.8276,2431.7,2431.6,1.711]
[1751234357697,0.8276,2431.7,2431.6,0.002]
[1751234357896,0.8276,2431.7,2431.6,1.711]
[1751234359593,0.8276,2431.7,2431.6,0.002]
[1751234361182,4.3230795,2431.7,2431.6,0.002]
[1751234361407,22.63604227,2431.7,2431.6,0.002]
[1751234361717,21.8745646,2431.7,2431.6,0.002]
[1751234367478,10.8145,2431.6,2430.8,0.2056]
[1751234367674,10.8145,2431.6,2430.7,4.4655]
[1751234367675,4.1055784,2430.9,2430.7,0.002]
[1751234367869,4.0307381,2430.8,2430.7,0.002]
[1751234368067,3.29109758,2430.8,2430.7,0.002]
[1751234368272,4.10552956,2430.9,2430.7,0.002]
[1751234368575,7.5045,2431.1,2430.7,0.002]
[1751234368974,10.0,2431.2,2430.8,3.2910775]
[1751234369203,10.0,2431.2,2430.7,0.002]
[1751234369204,3.29055671,2431.2,2430.7,3.29318422]
[1751234369401,10.0,2431.3,2430.8,3.29106715]
[1751234369603,0.7797,2431.4,2431.0,3.2907365]
[1751234369805,0.7515,2431.6,2431.1,3.29061855]
[1751234370101,10.0,2431.6,2431.2,3.29048474]
[1751234370606,6.693,2431.7,2431.3,3.30689231]
[1751234370804,10.002,2431.8,2431.3,0.67625554]
[1751234371009,0.002,2431.8,2431.4,3.29027291]
[1751234371312,0.002,2431.8,2431.4,5.00027291]
[1751234372710,0.002,2431.8,2431.5,3.2901349]
[1751234373997,0.002,2431.8,2431.5,3.29005122]
[1751234374186,0.002,2431.8,2431.5,4.18680591]
[1751234375679,0.002,2431.8,2431.6,3.29000458]
[1751234376111,0.002,2431.8,2431.5,4.18680423]
[1751234376913,0.002,2431.8,2431.6,3.29001349]
[1751234377082,0.002,2431.8,2431.5,4.18685328]
[1751234377609,0.002,2431.8,2431.6,3.28994912]
[1751234377934,0.002,2431.8,2431.5,4.3924528]
[1751234378531,0.002,2431.8,2431.6,4.22932898]
[1751234380195,0.002,2431.8,2431.6,0.93937122]
[1751234380392,0.002,2431.8,2431.6,3.28994709]
[1751234381923,0.002,2431.8,2431.5,3.49571616]
[1751234382133,0.002,2431.8,2431.5,0.2056]
[1751234382490,0.002,2431.8,2431.5,3.49573518]
[1751234384630,0.002,2431.8,2431.5,0.2056]
[1751234384830,0.002,2431.8,2431.7,3.2898795]
[1751234385006,0.002,2431.8,2431.7,3.4954795]
[1751234398109,0.002,2431.8,2431.7,0.2056]
[1751234398350,0.8051,2431.8,2431.7,1.725]
[1751234399535,0.8051,2431.8,2431.5,0.2056]
[1751234399729,4.0948757,2431.8,2431.5,1.9306]
[1751234400243,0.8051,2431.8,2431.5,1.9306]
[1751234400422,0.002,2431.8,2431.5,2.45278301]
[1751234400622,0.002,2431.8,2431.7,3.3063795]
[1751234400944,0.002,2431.8,2431.7,10.7499795]
[1751234401544,0.002,2431.8,2431.7,4.0619795]
[1751234401772,0.002,2431.8,2431.7,22.4759795]
[1751234402614,0.002,2431.8,2431.7,22.4779795]
[1751234402817,0.002,2431.8,2431.7,25.05576672]
[1751234403317,0.002,2431.8,2431.7,16.63876672]
[1751234403628,0.002,2431.8,2431.7,25.05776672]
[1751234404314,0.002,2432.6,2432.5,3.28879753]
[1751234404510,0.7721,2432.5,2431.9,0.0165]
[1751234404752,0.7721,2432.5,2432.1,3.28926936]
[1751234405346,0.7721,2432.5,2432.2,3.28917502]
[1751234405844,0.7721,2432.5,2432.1,3.28927761]
[1751234406032,0.7721,2432.5,2432.2,3.28916838]
[1751234407045,0.7721,2432.5,2432.3,1.725]
[1751234407749,0.7721,2432.5,2432.0,3.28941941]
[1751234407949,0.7721,2432.5,2432.1,1.725]
[1751234408149,0.7721,2432.5,2432.1,5.01424922]
[1751234408456,0.7721,2432.5,2432.0,6.7]
[1751234408457,0.7973,2432.4,2432.2,1.725]
[1751234409616,0.002,2432.6,2431.4,0.001]
[1751234409617,0.7958,2432.1,2431.4,0.001]
[1751234409822,0.7958,2431.9,2431.4,1.726]
[1751234410049,0.7958,2431.9,2431.4,5.01620903]
[1751234410416,4.08544848,2431.9,2431.4,1.726]
[1751234410646,4.08544848,2431.9,2431.4,0.001]
[1751234410647,7.5645851,2431.7,2431.4,0.001]
[1751234410964,14.11695011,2431.5,2431.4,0.001]
[1751234413350,10.8268,2431.5,2431.4,0.001]
[1751234413548,14.11695011,2431.5,2431.4,0.001]
[1751234414751,10.8268,2431.5,2431.4,0.001]
[1751234414957,11.0324,2431.5,2431.4,0.001]
[1751234415725,0.2056,2431.5,2431.4,3.30778543]
[1751234415925,0.8298,2432.0,2431.5,3.29015011]
[1751234415926,1.81290258,2432.0,2431.5,3.29015011]
[1751234416123,1.81290258,2432.0,2431.4,0.52077854]
[1751234416124,0.7808,2432.2,2431.7,3.28977625]
[1751234416320,0.2048,2432.0,2431.8,1.725]
[1751234416523,0.7808,2432.2,2432.0,3.28936122]
[1751234416753,0.2048,2432.2,2432.0,3.28947368]
[1751234416923,0.2048,2432.2,2431.9,3.2896019]
[1751234417119,0.2048,2432.2,2432.1,3.28933843]
[1751234417742,0.2048,2432.2,2431.7,0.2056]
[1751234417948,0.2048,2432.2,2432.0,1.725]
[1751234418350,0.2048,2432.2,2432.0,5.0144621]
[1751234419678,0.2048,2432.2,2432.1,3.28933843]
[1751234419834,0.2048,2432.3,2432.1,3.28933843]
[1751234420031,0.7987,2432.5,2432.1,3.2892135]
[1751234420344,0.2048,2432.4,2432.1,3.2892135]
[1751234420745,0.2048,2432.4,2432.2,3.28919143]
[1751234421854,0.002,2432.6,2432.3,3.28906796]
[1751234422029,0.002,2432.6,2432.4,3.28885886]
[1751234423557,0.002,2432.6,2432.4,3.28887106]
[1751234425269,0.002,2432.6,2432.5,3.28879753]
[1751234425973,0.002,2432.6,2432.4,3.49366306]
[1751234426139,0.002,2432.6,2432.5,0.34936631]
[1751234426341,0.002,2432.6,2432.5,2.08736631]
[1751234426569,0.002,2432.6,2432.5,5.37616384]
[1751234427668,0.002,2432.6,2432.5,5.58096384]
[1751234430872,0.002,2432.6,2432.5,0.34936631]
[1751234431072,0.002,2432.6,2432.5,1.738]
[1751234431791,0.002,2432.6,2432.5,5.02679753]
[1751234433663,0.002,2432.6,2432.5,1.738]
[1751234433983,0.002,2432.6,2432.5,5.02679753]
[1751234435273,0.002,2432.6,2432.5,5.23159753]
[1751234435500,0.002,2432.6,2432.5,6.75394894]
[1751234436907,0.002,2432.6,2432.5,6.77044894]
[1751234437054,0.002,2432.6,2432.5,7.32044894]
[1751234437769,0.002,2432.6,2432.5,6.77044894]
[1751234440593,0.002,2432.6,2432.5,10.15915141]
[1751234441889,0.002,2432.6,2432.5,8.6368]
[1751234442572,0.002,2432.6,2432.5,8.432]
[1751234443490,0.002,2432.6,2432.5,11.72079753]
[1751234444070,0.002,2432.6,2432.5,29.85188263]
[1751234448703,0.002,2432.6,2432.5,22.29129753]
[1751234448999,0.002,2432.6,2432.5,24.84931851]
[1751234449200,0.002,2432.6,2432.5,16.41331851]
[1751234449409,0.002,2432.6,2432.5,24.84731851]
[1751234449992,0.002,2432.6,2432.5,16.41331851]
[1751234450204,0.002,2432.6,2432.5,24.29231851]
[1751234451000,0.002,2432.6,2432.5,24.84231851]
[1751234454074,0.002,2432.6,2432.5,25.04711851]
[1751234462391,0.002,2432.8,2432.7,3.83852715]
[1751234462717,0.002,2432.8,2432.7,28.31241225]
[1751234465829,0.002,2432.8,2432.7,43.34246025]
[1751234466792,0.002,2432.8,2432.7,52.09709525]
[1751234467416,0.002,2432.8,2432.7,21.62441225]
[1751234467726,0.002,2432.8,2432.7,33.50840919]
[1751234469129,0.002,2432.8,2432.7,39.52559319]
[1751234469328,0.002,2432.8,2432.7,39.13212319]
[1751234470028,0.002,2432.8,2432.7,57.73144219]
[1751234470206,0.002,2432.8,2432.7,56.95606619]
[1751234471019,0.002,2432.8,2432.7,53.57110619]
[1751234471227,0.002,2432.8,2432.7,33.50640919]
[1751234472817,0.002,2432.8,2432.7,25.09040919]
[1751234473134,0.002,2432.8,2432.7,33.50440919]
[1751234474235,0.002,2432.8,2432.7,25.09040919]
[1751234474436,0.002,2432.8,2432.7,33.50340919]
[1751234478636,0.002,2432.8,2432.7,43.77440919]
[1751234481118,0.002,2433.6,2433.5,3.28744606]
[1751234481440,0.002,2433.6,2433.5,29.79903116]
[1751234485611,0.002,2433.6,2433.5,29.81553116]
[1751234485827,0.002,2434.1,2434.0,3.28677074]
[1751234486029,0.002,2434.1,2434.0,19.80935584]
[1751234486231,0.002,2434.1,2434.0,23.14598029]
[1751234486436,0.002,2434.1,2434.0,33.14598029]
[1751234486639,0.002,2434.1,2434.0,33.16248029]
[1751234489252,0.002,2434.1,2434.0,24.75448029]
[1751234490442,0.002,2434.1,2434.0,41.70648029]
[1751234490634,0.002,2434.1,2434.0,43.42748029]
[1751234491342,0.002,2434.1,2434.0,43.63228029]
[1751234496244,0.002,2434.1,2434.0,53.41595029]
[1751234498152,0.002,2434.1,2434.0,73.63228029]
[1751234498360,0.002,2434.4,2434.3,13.83636569]
[1751234498549,0.002,2434.4,2434.3,29.71175153]
[1751234498736,0.002,2434.4,2434.3,29.91655153]
[1751234499773,0.002,2434.4,2434.3,29.93305153]
[1751234501447,0.002,2434.4,2434.3,23.23855153]
[1751234501650,0.002,2434.4,2434.3,31.63655153]
[1751234502368,0.002,2434.4,2434.3,31.63455153]
[1751234503950,0.002,2434.4,2434.3,31.65105153]
[1751234504477,0.002,2434.4,2434.3,34.10747153]
[1751234504654,0.002,2434.4,2434.3,31.65105153]
[1751234505444,0.002,2434.4,2434.3,37.77521953]
[1751234505774,0.002,2434.4,2434.3,35.94171953]
[1751234505968,0.002,2434.4,2434.3,35.45065153]
[1751234506180,0.002,2434.4,2434.3,31.65105153]
[1751234506672,0.002,2434.4,2434.3,34.33515153]
[1751234506853,0.002,2434.4,2434.3,31.65105153]
[1751234507055,0.002,2434.4,2434.3,31.63755153]
[1751234507374,0.002,2434.4,2434.3,31.08755153]
[1751234507575,0.002,2434.4,2434.3,31.63755153]
[1751234508877,0.002,2434.4,2434.3,43.21942253]
[1751234509055,0.002,2434.7,2434.6,11.41704583]
[1751234509259,0.002,2434.7,2434.6,30.56935809]
[1751234509487,0.002,2434.7,2434.6,30.77415809]
[1751234509656,0.002,2435.4,2435.3,3.83501621]
[1751234509861,0.002,2435.4,2435.3,29.80360131]
[1751234510061,0.002,2435.4,2435.3,33.81692555]
[1751234510276,0.001,2436.8,2436.7,3.28312882]
[1751234510578,0.001,2436.8,2436.7,11.71112882]
[1751234511965,0.001,2436.8,2436.7,12.26112882]
[1751234513078,0.001,2436.8,2436.7,11.71112882]
[1751234514760,0.001,2436.8,2436.7,8.428]
[1751234515084,0.001,2436.8,2436.7,8.448]
[1751234515767,0.001,2436.8,2436.4,0.55]
[1751234516095,0.8309,2436.7,2436.5,8.446]
[1751234516447,4.11405702,2436.7,2436.6,8.447]
[1751234516674,4.05356283,2436.6,2436.3,10.265]
[1751234516859,3.69466272,2436.7,2436.3,10.265]
[1751234516860,4.05373308,2436.4,2436.3,10.265]
[1751234517066,4.05373308,2436.4,2436.3,18.712]
[1751234517879,3.28381076,2436.2,2435.8,10.0]
[1751234518086,3.28381076,2436.2,2435.7,3.28439905]
[1751234518087,0.8252,2436.1,2435.7,10.55]
[1751234518252,0.8252,2436.1,2435.7,10.0]
[1751234518882,0.8252,2436.1,2435.3,3.28493745]
[1751234518883,0.7796,2435.8,2435.3,3.28493745]
[1751234519072,0.7796,2435.8,2435.4,11.7328655]
[1751234519274,0.7796,2435.8,2435.4,8.448]
[1751234519865,0.7796,2435.8,2435.7,0.2048]
[1751234520068,0.7796,2435.8,2435.7,6.9118]
[1751234521891,0.7796,2435.8,2435.7,0.2048]
[1751234523168,4.47033139,2435.8,2435.7,8.6508]
[1751234523383,4.06394189,2435.8,2435.7,8.6488]
[1751234523593,4.06394189,2435.8,2435.7,0.2048]
[1751234523899,4.06394189,2435.8,2435.7,8.6488]
[1751234524071,0.7796,2435.8,2435.7,8.6488]
[1751234524280,0.7796,2435.8,2435.7,0.2048]
[1751234524586,0.7796,2435.8,2435.7,8.6488]
[1751234524801,0.7796,2435.8,2435.7,8.6478]
[1751234524959,0.7796,2435.8,2435.7,11.93227674]
[1751234525165,0.7796,2435.8,2435.7,8.6478]
[1751234525391,0.7796,2435.8,2435.7,11.93227674]
[1751234525561,0.777,2436.3,2435.8,3.28423931]
[1751234525890,0.777,2436.3,2435.7,13.12550441]
[1751234525891,10.777,2436.3,2435.9,3.28413578]
[1751234526092,0.777,2436.3,2436.0,6.704]
[1751234526880,10.777,2436.3,2436.0,6.704]
[1751234527893,0.777,2436.3,2436.0,6.704]
[1751234528191,0.777,2436.3,2436.0,9.98801955]
[1751234528493,0.777,2436.3,2436.0,6.704]
[1751234528695,0.4115057,2436.7,2436.2,3.28380264]
[1751234528696,0.8106,2436.7,2436.2,3.28380264]
[1751234528868,0.8106,2436.7,2436.4,3.28350647]
[1751234529068,0.8106,2436.7,2436.3,8.442]
[1751234529069,0.8106,2436.7,2436.5,3.28330851]
[1751234529285,0.8106,2436.7,2436.3,11.725619]
[1751234529286,0.8106,2436.7,2436.6,10.00026356]
[1751234529679,0.8106,2436.7,2436.6,6.717]
[1751234530391,0.8106,2436.7,2436.6,10.00026356]
[1751234530900,0.8012,2436.9,2436.7,3.28312882]
[1751234532911,0.8012,2436.9,2436.6,10.00022207]
[1751234533062,0.8012,2436.9,2436.7,3.28312882]
[1751234538670,0.8012,2436.9,2436.7,3.48792882]
[1751234539405,0.8012,2436.9,2436.7,4.83674391]
[1751234539908,0.7842,2437.1,2436.7,4.83674391]
[1751234542295,0.7842,2437.1,2436.7,13.27974391]
[1751234544279,4.06680111,2437.1,2436.7,8.6448]
[1751234544574,0.7842,2437.1,2436.7,8.6448]
[1751234544774,0.7842,2437.1,2436.6,3.28323022]
[1751234544775,4.04274115,2436.8,2436.6,1.74]
[1751234545013,4.04274115,2436.8,2436.7,6.7]
[1751234545014,0.7597,2436.8,2436.7,6.7]
[1751234545206,4.04186023,2436.7,2436.6,1.74]
[1751234545384,0.7587,2436.7,2436.6,8.442]
[1751234550229,0.001,2436.8,2436.7,3.83312882]
[1751234550382,0.001,2437.1,2437.0,3.28272466]
[1751234550587,0.001,2437.1,2437.0,10.55022466]
[1751234550888,0.001,2437.1,2437.0,31.41530743]
[1751234551230,0.001,2437.8,2437.6,0.0165]
[1751234551399,0.001,2437.8,2437.7,21.985782]
[1751234552102,0.001,2437.8,2437.7,13.539782]
[1751234552298,0.001,2437.8,2437.7,31.987782]
[1751234552506,0.001,2437.8,2437.7,31.986782]
[1751234552691,0.001,2437.8,2437.7,24.089782]
[1751234553015,0.001,2437.8,2437.7,35.31208811]
[1751234553417,0.001,2437.8,2437.7,10.808]
[1751234553617,0.001,2437.8,2437.7,19.254]
[1751234554607,0.001,2437.8,2437.7,18.704]
[1751234554816,0.001,2437.8,2437.7,18.9088]
[1751234554980,0.001,2437.8,2437.7,18.9068]
[1751234555412,0.001,2437.8,2437.7,10.4628]
[1751234555721,0.001,2437.8,2437.7,18.9098]
[1751234556122,0.001,2437.8,2437.7,10.4628]
[1751234556318,0.001,2437.8,2437.7,18.9078]
[1751234556720,0.001,2437.8,2437.7,18.702]
[1751234556923,0.001,2437.8,2437.6,6.9098]
[1751234557313,3.28264738,2437.8,2437.6,0.2048]
[1751234557512,4.109382,2437.7,2437.6,0.2048]
[1751234557723,0.8276,2437.7,2437.6,8.6548]
[1751234558535,0.8276,2437.7,2437.6,0.2048]
[1751234558832,0.8276,2437.7,2437.6,8.6538]
[1751234559738,4.109382,2437.7,2437.6,8.6538]
[1751234560426,0.8276,2437.7,2437.6,8.6518]
[1751234560600,0.001,2437.8,2437.6,9.51698]
[1751234560807,0.001,2437.8,2437.7,0.2048]
[1751234561511,0.001,2437.8,2437.7,8.6508]
[1751234561724,0.001,2437.8,2437.7,3.486582]
[1751234562041,0.001,2437.8,2437.7,8.6498]
[1751234562216,0.001,2437.8,2437.7,13.53947026]
[1751234563037,0.001,2437.8,2437.7,18.84947026]
[1751234564057,0.001,2437.8,2437.7,29.71455303]
[1751234564221,0.001,2437.8,2437.7,29.73105303]
[1751234564419,0.001,2437.8,2437.7,39.73105303]
[1751234564614,0.001,2438.1,2438.0,3.84787817]
[1751234564816,0.2160359,2439.0,2438.9,3.28016728]
[1751234565016,0.2160359,2439.0,2438.9,33.15675005]
[1751234565246,0.97775836,2440.3,2439.7,0.0165]
[1751234565535,0.97645922,2440.9,2440.8,3.27761389]
[1751234565735,0.97645922,2440.9,2440.8,34.17580111]
[1751234565945,5.5762963,2441.8,2440.8,34.17580111]
[1751234565946,0.7549,2441.8,2440.9,0.55]